bitfinex/quotes_ETHUSD_20220202
["timestamp","ask_amount","ask_price","bid_price","bid_amount"]
[1643845574890,1.57938414,2682.8,2681.6,0.94439747]
[1643845575091,0.1,2683.1,2681.6,1.39239747]
[1643845575330,1.57937745,2683.0,2681.7,0.1131944]
[1643845575555,1.57937745,2683.0,2682.8,0.32722693]
[1643845575932,0.149163,2683.8,2682.8,0.32722693]
[1643845575933,0.85343832,2683.8,2682.8,0.32722693]
[1643845576131,1.57895232,2683.7,2683.0,0.93155]
[1643845576332,1.57895232,2683.7,2683.0,2.06640954]
[1643845576532,1.57895232,2683.7,2683.0,2.36640954]
[1643845576730,1.57895232,2683.7,2683.2,1.8626]
[1643845576932,1.57895232,2683.7,2683.6,0.34094815]
[1643845577131,1.57895232,2683.7,2683.6,1.27224815]
[1643845577732,0.149163,2683.8,2683.6,1.27224815]
[1643845577933,0.149122,2684.3,2683.6,1.27224815]
[1643845578131,2.28298999,2684.2,2683.6,1.27224815]
[1643845578330,1.57871467,2684.1,2683.3,1.0]
[1643845578531,1.57871467,2684.1,2682.9,2.86298]
[1643845578532,1.57871467,2684.0,2682.9,2.86298]
[1643845578730,1.57871467,2684.0,2682.9,1.0]
[1643845578731,1.57871467,2683.9,2682.9,1.0]
[1643845578988,1.57871467,2683.8,2682.8,0.83078998]
[1643845579188,0.89047532,2683.9,2682.8,0.83078998]
[1643845579387,1.87871467,2684.0,2683.6,0.36139485]
[1643845579388,1.57871467,2683.8,2683.6,0.36139485]
[1643845579589,0.435102,2684.3,2683.6,0.36139485]
[1643845579590,1.57871467,2683.7,2683.6,0.36139485]
[1643845579786,1.57871467,2683.7,2682.8,2.27878998]
[1643845579991,0.149173,2684.0,2682.8,2.27878998]
[1643845579992,1.57871467,2683.6,2682.8,1.27878998]
[1643845580188,0.149173,2684.0,2682.8,2.28056316]
[1643845580189,1.57871467,2683.5,2682.8,2.28056316]
[1643845580387,0.149173,2684.0,2682.8,2.88056316]
[1643845580588,1.76505547,2683.9,2682.8,2.58056316]
[1643845580786,1.76505547,2683.9,2683.0,0.33270977]
[1643845580787,1.57885547,2683.8,2683.0,0.33270977]
[1643845580987,1.57885547,2683.8,2683.0,1.26432977]
[1643845581385,1.57885547,2683.8,2683.0,1.26610295]
[1643845581589,1.57885547,2683.8,2683.0,0.93339318]
[1643845581793,2.74843373,2683.7,2683.0,0.00177318]
[1643845581988,2.74843373,2683.7,2682.8,0.00177318]
[1643845581989,2.73113079,2683.6,2682.8,0.00177318]
[1643845582187,2.46933079,2683.5,2682.8,0.00177318]
[1643845582388,1.57885547,2683.4,2682.8,0.00177318]
[1643845582592,1.57885547,2683.4,2682.7,0.35573901]
[1643845582593,0.1862,2683.3,2682.7,0.35573901]
[1643845582834,1.57885547,2683.2,2682.3,0.9131013]
[1643845583133,1.57885547,2683.2,2682.0,3.72574]
[1643845583134,1.57885547,2683.2,2682.4,0.93358318]
[1643845583333,1.57885547,2683.1,2682.4,0.93358318]
[1643845583537,1.57885547,2683.1,2682.4,0.00177318]
[1643845583538,3.97324799,2683.1,2682.4,0.00177318]
[1643845583736,0.3,2682.9,2682.1,0.43352932]
[1643845583935,1.57885547,2682.8,2682.1,0.43352932]
[1643845584136,1.76505547,2682.8,2682.1,0.43352932]
[1643845584334,0.1862,2682.8,2682.1,0.43352932]
[1643845584534,0.1862,2682.8,2682.1,0.43175614]
[1643845584937,0.1862,2683.1,2682.2,1.0449144]
[1643845585147,0.01235674,2684.1,2682.5,0.0128043]
[1643845585148,0.1862,2683.6,2682.5,0.0128043]
[1643845585337,4.6493,2683.8,2682.5,2.42008218]
[1643845585536,4.6493,2683.8,2682.5,2.72008218]
[1643845585735,4.6493,2683.8,2683.3,0.83817677]
[1643845585938,0.1862,2683.8,2683.4,0.33998117]
[1643845586138,0.149122,2684.3,2683.4,0.33998117]
[1643845586483,0.149122,2684.3,2683.4,1.78798117]
[1643845586883,0.149122,2684.3,2683.8,0.84735558]
[1643845587085,0.149122,2684.3,2683.9,0.38542164]
[1643845588185,0.149122,2684.3,2683.4,2.86273]
[1643845588385,0.149122,2684.3,2683.2,0.17639994]
[1643845588584,1.5788024,2683.9,2683.2,0.17639994]
[1643845589483,0.1862,2683.8,2683.2,0.17639994]
[1643845589685,0.1862,2683.9,2683.2,0.17639994]
[1643845589884,0.1862,2684.2,2683.2,0.17639994]
[1643845590084,0.4862,2684.2,2683.2,0.17639994]
[1643845590339,1.57886674,2683.9,2683.2,0.17639994]
[1643845590635,1.76506674,2683.9,2683.2,0.17639994]
[1643845590833,0.1862,2683.9,2682.8,0.00177318]
[1643845591040,4.3775,2683.8,2682.4,0.01272753]
[1643845591239,4.3775,2683.8,2682.3,0.13997315]
[1643845591240,1.76517259,2683.7,2682.3,0.13997315]
[1643845591435,1.57897259,2683.6,2682.3,0.13293034]
[1643845591634,1.87897259,2683.6,2682.7,0.32495931]
[1643845591835,1.57897259,2683.5,2682.7,0.32495931]
[1643845592234,1.57897259,2683.5,2682.7,0.32673259]
[1643845592434,0.3,2683.6,2682.7,0.32673259]
[1643845592637,0.1862,2683.5,2682.7,0.32673259]
[1643845593036,0.37218,2683.6,2682.7,0.00177328]
[1643845593236,1.57913213,2683.5,2682.8,0.00177328]
[1643845593436,0.1862,2683.4,2682.8,0.00177328]
[1643845593635,0.1862,2683.5,2682.8,0.00177328]
[1643845593837,0.1862,2683.5,2682.3,0.13293034]
[1643845593838,0.1862,2683.6,2682.4,0.00177328]
[1643845594082,0.1862,2683.6,2682.9,0.32682326]
[1643845594582,0.1862,2683.7,2682.7,0.00177328]
[1643845594988,0.1862,2683.7,2683.0,3.0]
[1643845595185,0.335373,2684.0,2683.3,0.01207337]
[1643845595388,0.149122,2684.3,2683.5,0.93129]
[1643845595584,0.149122,2684.3,2683.5,1.37929]
[1643845595784,4.2784,2685.1,2683.5,1.37929]
[1643845595785,0.1862,2685.0,2683.6,3.0]
[1643845595989,0.1862,2685.5,2684.2,3.0]
[1643845596188,2.36816932,2685.7,2684.5,3.0]
[1643845596189,0.14911,2685.1,2684.5,3.0]
[1643845596387,7.4,2686.1,2684.8,1.86137]
[1643845596388,0.1862,2686.0,2684.8,1.86137]
[1643845596593,0.1861,2686.4,2685.1,3.01270069]
[1643845596789,0.14909,2685.2,2685.1,3.01270069]
[1643845596986,7.586,2686.6,2685.2,0.1131944]
[1643845597186,1.5776761,2686.5,2685.3,1.37846]
[1643845597385,1.5776761,2686.5,2685.7,0.93045]
[1643845597585,1.5776761,2686.5,2686.0,0.93044]
[1643845597871,1.5776761,2686.5,2686.2,0.89729693]
[1643845598271,0.149026,2686.7,2686.2,0.89729693]
[1643845598471,1.57759415,2686.6,2686.2,0.89729693]
[1643845598672,1.57759415,2686.6,2685.9,1.70849081]
[1643845599071,1.57759415,2686.6,2686.2,0.43234799]
[1643845599274,1.57759415,2686.6,2685.9,1.70849081]
[1643845599473,1.57759415,2686.6,2686.1,0.93043]
[1643845599674,1.57760995,2686.5,2685.9,1.10849081]
[1643845599875,0.186,2686.6,2685.8,0.79720026]
[1643845600072,1.52767724,2686.5,2685.8,0.79720026]
[1643845600272,0.00276344,2686.6,2686.1,0.38079763]
[1643845600471,0.00276344,2686.6,2685.8,0.79720026]
[1643845600874,0.18876344,2686.7,2685.8,0.79720026]
[1643845601492,0.18876344,2686.7,2686.0,0.93054]
[1643845601684,0.00276344,2686.7,2686.0,1.23054]
[1643845601882,3.0,2686.8,2686.0,1.53054]
[1643845601883,3.00276344,2686.8,2686.0,1.53054]
[1643845602287,3.00276344,2686.8,2685.9,0.4477]
[1643845602489,0.0120304,2686.6,2685.9,0.4477]
[1643845602686,0.186,2686.5,2685.9,0.4477]
[1643845603688,0.01252671,2686.0,2684.8,0.93094]
[1643845603988,0.0128448,2685.2,2684.6,0.33881459]
[1643845604187,0.1862,2685.7,2684.6,0.33881459]
[1643845604386,0.19918437,2685.8,2684.6,0.33881459]
[1643845604590,0.19918437,2685.8,2684.8,0.74462876]
[1643845605088,0.1862,2685.8,2685.1,0.44007742]
[1643845605336,0.186,2685.9,2685.1,0.44007742]
[1643845605538,4.5069,2686.0,2685.1,0.44007742]
[1643845605733,4.5069,2686.0,2684.9,0.186]
[1643845606133,4.5069,2686.0,2684.9,1.486]
[1643845606334,4.5069,2686.0,2684.9,1.3]
[1643845606537,0.186,2685.9,2684.9,1.6]
[1643845606736,0.56473752,2685.9,2684.8,0.186]
[1643845606936,0.56473752,2685.9,2684.4,2.40416082]
[1643845606937,0.01241822,2685.6,2684.6,0.186]
[1643845607136,0.01241822,2685.6,2684.5,0.1862]
[1643845607336,0.01241822,2685.6,2684.4,0.1862]
[1643845607735,0.43705802,2685.4,2684.3,0.47954308]
[1643845608139,0.73705802,2685.4,2684.3,0.47954308]
[1643845608446,0.18598,2685.3,2684.2,0.1862]
[1643845608639,0.18598,2685.3,2684.1,0.2055]
[1643845608640,0.37218,2685.3,2684.1,0.2055]
[1643845608838,0.448,2685.2,2683.9,0.13293034]
[1643845609082,0.37218,2685.1,2683.9,0.13293034]
[1643845609283,0.37218,2685.1,2683.3,0.1862]
[1643845609284,0.82018,2685.1,2684.1,0.36108981]
[1643845609584,0.82018,2685.1,2684.3,0.67193616]
[1643845609585,0.6342,2685.1,2684.3,0.67193616]
[1643845610281,0.6342,2685.1,2684.1,0.36108981]
[1643845610488,0.1862,2685.1,2684.1,0.36108981]
[1643845610683,0.1862,2685.4,2684.6,0.38714687]
[1643845611582,0.18598,2685.5,2684.8,0.90012639]
[1643845611583,0.1862,2685.5,2684.8,0.90012639]
[1643845611787,0.1862,2685.6,2684.8,1.20012639]
[1643845611983,0.00226818,2685.7,2684.7,0.1862]
[1643845612182,0.00226818,2685.7,2684.7,0.3]
[1643845612384,0.00226818,2685.7,2684.7,0.25]
[1643845612584,0.00226818,2685.7,2684.6,0.38714687]
[1643845612829,0.00226818,2685.7,2684.6,0.68714687]
[1643845613238,0.00226818,2685.7,2685.4,0.39503986]
[1643845613431,0.00226818,2685.7,2684.7,0.186]
[1643845613736,0.1884488,2685.9,2684.7,0.186]
[1643845613933,0.1884488,2685.9,2684.6,0.1862]
[1643845614333,0.1884488,2685.9,2684.7,0.93091]
[1643845614533,0.1884488,2685.9,2684.8,0.186]
[1643845614534,0.0022488,2685.9,2684.8,0.186]
[1643845614931,0.0022488,2685.9,2684.6,0.634]
[1643845616235,0.1884488,2685.9,2684.6,0.634]
[1643845616484,0.1884488,2685.9,2684.9,0.31830752]
[1643845617086,0.1884488,2685.9,2684.6,0.186]
[1643845617087,0.18598,2685.8,2684.6,0.186]
[1643845617290,0.18598,2685.8,2683.3,0.3846016]
[1643845617291,0.01224248,2685.7,2684.3,0.1862]
[1643845617486,0.37218,2685.6,2684.1,0.1862]
[1643845617685,0.37218,2685.6,2683.9,0.1862]
[1643845618086,0.76478523,2685.4,2683.9,0.1862]
[1643845618286,0.37218,2685.3,2683.9,0.1862]
[1643845619185,0.37218,2685.3,2684.1,0.34901532]
[1643845619387,0.67218,2685.3,2684.1,0.34901532]
[1643845619888,0.97218,2685.3,2684.1,0.34901532]
[1643845620231,1.57827937,2685.2,2684.1,0.34901532]
[1643845620631,1.57827937,2685.2,2684.6,0.34958511]
[1643845620832,0.74457268,2685.1,2683.9,1.4862]
[1643845621035,1.57827937,2685.0,2683.9,1.4862]
[1643845621437,0.18598,2684.9,2683.9,0.1862]
[1643845621637,3.0,2684.7,2683.5,0.1862]
[1643845621838,3.0,2684.4,2683.4,0.39477573]
[1643845622036,1.76447937,2684.3,2683.4,0.39477573]
[1643845622235,1.57827937,2684.2,2683.4,0.39477573]
[1643845622735,0.1862,2684.3,2683.4,0.39477573]
[1643845622935,0.1862,2684.4,2683.5,1.0]
[1643845623136,0.1862,2684.7,2683.5,1.1862]
[1643845623336,4.0192,2684.8,2684.1,0.44278256]
[1643845623537,4.0192,2684.8,2683.9,0.9306841]
[1643845623538,1.52789399,2684.7,2683.9,0.9306841]
[1643845623735,0.1862,2684.8,2683.9,2.36534652]
[1643845624029,4.39975157,2685.1,2683.9,2.36534652]
[1643845624030,0.18845157,2685.1,2684.0,0.1862]
[1643845624220,0.00225157,2685.1,2684.0,0.1862]
[1643845624719,0.00225157,2685.1,2684.9,0.40736648]
[1643845625724,0.00225157,2685.1,2684.9,0.70736648]
[1643845625922,0.00225157,2685.1,2684.9,0.40736648]
[1643845626123,0.00225157,2685.1,2685.0,0.93079]
[1643845626321,0.00225157,2685.1,2685.0,1.23079]
[1643845626722,0.00225157,2685.1,2685.0,1.53079]
[1643845627324,0.00225157,2685.1,2685.0,1.71699]
[1643845627737,0.00225157,2685.1,2685.0,1.41699]
[1643845628336,5.02272412,2686.1,2685.0,1.41699]
[1643845628539,0.1862,2686.0,2685.0,1.23079]
[1643845629142,0.1862,2686.0,2685.8,0.44645785]
[1643845629538,0.1862,2686.0,2685.0,1.23079]
[1643845629740,0.89047532,2686.0,2685.0,1.23079]
[1643845630439,0.70427532,2685.9,2685.0,1.23079]
[1643845630639,0.70427532,2685.9,2685.4,0.43487802]
[1643845631883,0.186,2685.8,2685.4,0.43487802]
[1643845632284,0.89027532,2686.0,2685.4,0.43487802]
[1643845632486,0.89027532,2686.0,2685.0,0.93079]
[1643845632685,0.70427532,2685.9,2685.0,0.93079]
[1643845632886,0.186,2685.8,2685.0,1.23079]
[1643845633184,0.186,2685.9,2685.0,1.23079]
[1643845633384,0.89254904,2685.9,2685.0,1.23079]
[1643845633585,0.70654904,2685.9,2685.0,1.23079]
[1643845633784,0.186,2685.8,2685.3,0.78923706]
[1643845634384,0.186,2685.8,2685.0,1.23079]
[1643845634986,0.186,2685.8,2685.5,0.4155178]
[1643845635741,0.00227372,2685.9,2685.5,0.4155178]
[1643845638244,5.20647532,2686.1,2685.5,0.4155178]
[1643845638245,4.50446818,2686.1,2685.5,0.4155178]
[1643845638443,4.31846818,2686.1,2686.0,0.87786423]
[1643845638646,0.00226818,2686.1,2686.0,0.87786423]
[1643845639191,0.00226818,2686.1,2685.6,0.93072]
[1643845639393,0.00226818,2686.1,2686.0,0.38980129]
[1643845639590,0.00226818,2686.1,2685.6,0.93072]
[1643845639591,3.60226818,2686.1,2685.6,0.93072]
[1643845639790,4.3065435,2686.1,2685.6,0.93072]
[1643845639990,0.70427532,2686.0,2685.6,0.93072]
[1643845640189,0.70427532,2686.0,2685.4,0.3]
[1643845640391,0.70427532,2686.0,2685.5,0.86181172]
[1643845640590,0.70427532,2685.9,2685.5,0.86181172]
[1643845640794,3.60226818,2686.1,2685.7,0.32130713]
[1643845640795,0.70427532,2686.0,2685.7,0.32130713]
[1643845641193,0.70427532,2685.9,2685.7,0.32130713]
[1643845641593,0.70427532,2686.0,2685.7,0.32130713]
[1643845641793,0.70427532,2686.0,2685.2,1.86153]
[1643845642195,3.0,2685.8,2685.1,0.55864]
[1643845642398,3.0,2685.8,2683.2,2.08801684]
[1643845642399,0.01258622,2685.3,2683.2,2.08801684]
[1643845642595,0.70427532,2685.1,2683.5,0.6518048]
[1643845642841,0.70427532,2685.1,2684.9,0.37491812]
[1643845642842,4.6071,2685.0,2684.9,0.37491812]
[1643845643047,4.6071,2685.0,2683.5,1.86238]
[1643845643541,1.57812975,2684.9,2683.5,1.86238]
[1643845643748,0.71637113,2684.6,2683.3,0.93152]
[1643845643943,1.57812975,2684.5,2683.9,0.39032858]
[1643845644142,1.76432975,2684.5,2683.9,0.39032858]
[1643845644340,1.57812975,2684.4,2683.9,0.39032858]
[1643845644741,1.87812975,2684.4,2683.9,0.39032858]
[1643845644942,1.57812975,2684.3,2683.9,0.39032858]
[1643845645141,2.50971065,2684.3,2683.9,0.39032858]
[1643845645343,1.57812975,2684.2,2683.2,0.13293034]
[1643845646145,1.76432975,2684.2,2683.2,0.13293034]
[1643845646486,1.57812975,2684.1,2683.6,0.72980829]
[1643845646686,0.9315809,2684.3,2683.6,0.72980829]
[1643845646886,1.57837626,2684.2,2683.2,0.13293034]
[1643845647486,1.57837626,2684.2,2683.8,0.43860028]
[1643845648289,1.58032959,2684.2,2683.8,0.43860028]
[1643845648988,1.58032959,2684.2,2683.2,0.13293034]
[1643845649389,0.9316371,2684.1,2683.2,0.13293034]
[1643845649694,0.9316371,2684.1,2682.7,0.00177385]
[1643845649695,1.76457626,2684.0,2682.7,0.00177385]
[1643845649890,1.57837626,2683.9,2683.0,0.85380461]
[1643845650089,6.19857626,2683.9,2683.0,0.85380461]
[1643845650335,1.57837626,2683.8,2683.0,0.85380461]
[1643845650937,1.57837626,2683.8,2683.1,0.38368432]
[1643845651137,1.87837626,2683.8,2683.0,0.85380461]
[1643845651338,1.57837626,2683.7,2683.0,0.85380461]
[1643845651539,2.51015086,2683.7,2683.0,0.85380461]
[1643845651743,2.25055626,2683.6,2682.6,0.00177385]
[1643845651941,1.57837626,2683.5,2682.4,0.00177385]
[1643845652142,0.37218,2683.4,2682.8,0.44535897]
[1643845652348,1.57837626,2683.3,2682.4,0.00177385]
[1643845652537,1.57837626,2683.3,2681.6,0.00177385]
[1643845652538,0.37218,2683.2,2681.6,0.00177385]
[1643845652738,0.9320442,2682.9,2682.4,0.94248022]
[1643845653337,0.9320442,2682.9,2682.5,0.44464224]
[1643845653540,0.1862,2683.2,2682.5,0.44464224]
[1643845653737,0.4862,2683.3,2682.5,0.44464224]
[1643845654000,0.9319569,2683.2,2682.5,0.44464224]
[1643845654193,0.1862,2683.3,2682.5,0.44464224]
[1643845654589,0.1862,2683.3,2683.2,0.37932905]
[1643845655195,0.19890627,2683.4,2683.2,0.37932905]
[1643845655394,0.18853291,2683.8,2683.2,0.37932905]
[1643845655993,0.18853291,2683.8,2683.3,0.93149]
[1643845655994,0.00233291,2683.8,2683.3,0.93149]
[1643845656198,0.00233291,2683.8,2683.3,4.78697363]
[1643845656496,0.00233291,2683.8,2683.3,1.96888086]
[1643845657094,0.00233291,2683.8,2683.3,0.73739086]
[1643845657295,0.00233291,2683.8,2683.3,1.03739086]
[1643845657500,0.00233291,2683.8,2683.3,3.52641525]
[1643845657736,0.00233291,2683.8,2683.3,1.03739086]
[1643845658538,0.93387175,2684.3,2683.9,0.67222214]
[1643845658738,1.57847855,2684.2,2684.0,0.42105535]
[1643845659137,0.93387175,2684.3,2684.0,0.42105535]
[1643845659738,5.08598,2684.1,2684.0,0.42105535]
[1643845659938,5.08598,2684.1,2682.9,1.86304]
[1643845659939,6.85068768,2684.1,2682.9,1.86304]
[1643845660143,0.9316456,2683.8,2682.9,1.86304]
[1643845660338,0.9316456,2683.8,2682.8,0.93165]
[1643845660740,0.9316456,2683.8,2683.4,0.8442152]
[1643845661139,0.9316456,2683.8,2683.5,0.39010849]
[1643845661782,2.0492909,2684.1,2684.0,0.42536244]
[1643845661783,1.8633109,2684.1,2684.0,0.42536244]
[1643845661984,3.44185157,2684.1,2683.9,0.39597954]
[1643845662182,1.57854067,2684.0,2683.9,0.39597954]
[1643845662786,2.1633109,2684.1,2683.9,0.39597954]
[1643845663787,0.93156,2684.2,2683.9,0.39597954]
[1643845663987,0.1862,2684.3,2683.9,0.39597954]
[1643845663988,0.149156,2684.3,2683.9,0.39597954]
[1643845664189,0.149156,2684.3,2683.9,0.69597954]
[1643845664390,4.485,2684.9,2683.9,0.69597954]
[1643845664587,4.2988,2684.9,2683.9,0.69597954]
[1643845664786,4.2988,2684.9,2684.7,0.75796552]
[1643845664988,0.00526963,2685.0,2684.7,0.75796552]
[1643845665245,0.00526963,2685.0,2684.8,0.41051038]
[1643845665445,0.00526963,2685.0,2684.0,0.01493531]
[1643845665446,5.87813576,2684.9,2684.0,0.01493531]
[1643845665639,1.57813576,2684.8,2683.9,1.86237]
[1643845665838,1.76433576,2684.8,2683.9,1.86237]
[1643845666037,1.57813576,2684.7,2683.9,1.86237]
[1643845666640,1.57813576,2684.7,2684.6,0.41056758]
[1643845666840,1.76411576,2684.7,2684.6,0.41056758]
[1643845667043,1.95031576,2684.7,2683.7,1.86254]
[1643845667240,1.57813576,2684.6,2683.7,1.86254]
[1643845667640,1.87813576,2684.6,2683.7,1.86254]
[1643845667847,1.87813576,2684.6,2683.3,0.78475595]
[1643845667848,3.0,2684.4,2683.3,0.78475595]
[1643845668146,3.0,2684.4,2682.6,1.36546385]
[1643845668147,0.01254255,2684.2,2682.6,2.29728385]
[1643845668342,1.76433576,2684.1,2682.6,2.29728385]
[1643845668641,1.76411576,2684.0,2682.6,2.29728385]
[1643845668842,1.76433576,2683.9,2682.6,2.29728385]
[1643845669087,0.9316628,2683.8,2683.2,0.67362657]
[1643845669286,0.9316628,2683.8,2683.4,0.31550063]
[1643845669586,0.3,2683.7,2683.4,0.31550063]
[1643845670185,0.9316628,2683.8,2683.4,0.31550063]
[1643845671187,0.3,2683.7,2682.8,0.93162]
[1643845671397,4.56022549,2683.6,2682.6,0.4322]
[1643845671592,1.76501489,2683.5,2682.6,0.4322]
[1643845671788,0.1862,2683.5,2682.6,0.4322]
[1643845671989,1.76484884,2683.4,2682.6,0.4322]
[1643845672191,0.18598,2683.4,2682.8,0.7262938]
[1643845672388,0.18598,2683.4,2683.0,0.43055208]
[1643845672588,0.18598,2683.4,2682.8,0.7262938]
[1643845672835,1.1178234,2683.4,2682.8,0.7262938]
[1643845673032,0.1862,2683.3,2682.6,0.4322]
[1643845673231,0.4862,2683.3,2682.6,0.4322]
[1643845673832,0.4862,2683.3,2683.0,0.42977705]
[1643845674033,0.9318612,2683.2,2682.6,1.24254986]
[1643845675035,0.3,2683.1,2682.5,0.00177385]
[1643845675234,0.9320927,2682.9,2682.3,0.00177385]
[1643845675837,1.2320927,2682.9,2681.2,0.00177385]
[1643845676037,2.37321346,2682.8,2682.0,0.7765825]
[1643845676233,3.5823948,2682.8,2682.4,0.38954361]
[1643845676484,0.9321374,2682.7,2682.4,0.38954361]
[1643845677089,0.1862,2683.0,2682.4,0.38954361]
[1643845677285,0.1862,2683.1,2682.5,0.9327093]
[1643845677484,0.1862,2683.1,2683.0,0.66925579]
[1643845677686,0.1862,2683.2,2683.0,0.4016389]
[1643845677882,0.9318684,2683.2,2682.4,0.00177385]
[1643845678083,0.1862,2683.1,2682.4,0.00177385]
[1643845678283,0.1862,2683.3,2682.1,0.3]
[1643845678487,3.85955875,2683.5,2682.0,0.3]
[1643845678488,0.00230518,2682.8,2682.0,0.3]
[1643845678690,0.00230518,2682.8,2682.6,0.76487504]
[1643845679886,0.00230518,2682.8,2682.7,0.40405099]
[1643845682337,0.00139167,2682.8,2682.7,0.40405099]
[1643845683138,2.45139167,2682.8,2682.7,0.40405099]
[1643845683341,2.45139167,2682.8,2682.3,0.00177385]
[1643845683538,2.45139167,2682.8,2682.3,1.0]
[1643845683738,2.45230518,2682.8,2682.2,2.16365]
[1643845683990,2.45230518,2682.8,2682.2,1.86365]
[1643845684186,0.00230518,2682.8,2682.7,0.72356774]
[1643845685086,0.00230518,2682.8,2682.7,1.07901907]
[1643845685885,0.00230518,2682.8,2682.7,1.37901907]
[1643845686286,0.00230518,2682.8,2682.7,1.07901907]
[1643845687387,0.00230518,2682.8,2682.7,1.37901907]
[1643845687738,0.00230518,2682.8,2682.7,1.07901907]
[1643845688333,1.57893616,2683.2,2682.7,1.07901907]
[1643845688737,2.51085476,2683.2,2682.7,1.07901907]
[1643845688935,1.57893616,2683.1,2682.7,0.35545133]
[1643845690236,1.87893616,2683.1,2682.7,0.35545133]
[1643845690536,1.57893616,2683.0,2682.7,0.35545133]
[1643845691134,1.57893616,2683.0,2682.3,0.00177385]
[1643845691339,0.9319911,2682.9,2682.3,0.00177385]
[1643845691593,0.9319911,2682.9,2682.1,0.00177385]
[1643845691594,1.57893616,2682.8,2682.1,0.00177385]
[1643845691797,1.87893616,2682.8,2682.1,0.00177385]
[1643845691993,0.1862,2682.9,2682.1,0.00177385]
[1643845691994,1.57893616,2682.7,2682.1,0.00177385]
[1643845692193,1.57893616,2682.6,2682.4,0.31559013]
[1643845692392,0.1862,2682.9,2682.1,0.79989637]
[1643845692598,1.87920806,2682.8,2682.1,0.79989637]
[1643845692792,1.87920806,2682.8,2682.1,0.80167022]
[1643845692793,1.57920806,2682.7,2682.1,0.80167022]
[1643845693194,2.51132516,2682.7,2682.1,0.80167022]
[1643845693394,1.57920806,2682.6,2682.2,0.39567842]
[1643845695438,0.9321171,2682.7,2682.2,0.39567842]
[1643845695643,2.61709,2683.2,2682.2,2.57625763]
[1643845695644,0.1862,2683.1,2682.2,2.57625763]
[1643845695839,1.237,2683.2,2682.8,0.94316365]
[1643845696043,1.1729,2683.4,2682.8,0.94316365]
[1643845696241,1.57888625,2683.3,2682.4,2.16927763]
[1643845696440,1.57888625,2683.2,2682.4,0.3]
[1643845696641,1.57888625,2683.1,2682.4,0.3]
[1643845696838,0.9318525,2683.4,2682.2,1.23181]
[1643845697043,1.57893658,2683.3,2682.3,2.2619477]
[1643845697339,1.57893658,2683.3,2683.0,0.40571707]
[1643845697738,1.87893658,2683.3,2683.0,0.40571707]
[1643845697938,1.57893658,2683.2,2683.0,0.40571707]
[1643845698539,0.3,2683.3,2683.0,0.40571707]
[1643845698540,0.449206,2683.3,2683.0,0.40571707]
[1643845698739,1.57893463,2683.2,2682.6,0.93182]
[1643845698991,2.51081053,2683.2,2682.2,0.30177385]
[1643845699192,1.87893463,2683.1,2682.3,2.86363]
[1643845699391,0.3,2683.1,2682.3,1.86363]
[1643845699598,1.57900563,2683.0,2682.3,1.86363]
[1643845699791,1.57900563,2683.0,2682.8,0.35108406]
[1643845700194,2.51093393,2683.0,2682.5,0.9238717]
[1643845700394,0.3,2682.9,2682.5,0.9238717]
[1643845700792,0.3,2682.9,2682.3,1.86363]
[1643845700993,1.57910068,2682.8,2682.2,0.00177385]
[1643845701198,1.57910068,2682.8,2682.0,0.00177385]
[1643845701393,1.87910068,2682.8,2682.0,0.00177385]
[1643845701594,1.76550068,2682.7,2682.0,0.00177385]
[1643845701791,0.1864,2682.7,2682.0,0.89448398]
[1643845701992,1.57920635,2682.6,2682.0,0.89448398]
[1643845702197,1.87920635,2682.6,2682.0,0.89448398]
[1643845702392,0.3,2682.6,2682.5,0.82182714]
[1643845702594,1.2321601,2682.7,2682.5,0.82182714]
[1643845702842,1.2321601,2682.7,2682.0,0.00177385]
[1643845703645,1.2321601,2682.7,2682.5,0.44309105]
[1643845705546,0.9318963,2683.0,2682.5,0.44309105]
[1643845705746,4.9887,2683.3,2682.5,0.44309105]
[1643845706048,1.57897504,2683.2,2682.5,0.44309105]
[1643845706686,1.57897504,2683.2,2682.9,0.75825169]
[1643845706889,1.57807845,2683.2,2683.0,0.37573137]
[1643845707087,0.1862,2683.5,2683.0,0.37573137]
[1643845707088,0.9317821,2683.4,2683.0,0.37573137]
[1643845707292,0.1862,2683.3,2682.4,1.3]
[1643845707687,0.1862,2683.5,2682.4,0.3]
[1643845707887,0.1862,2683.5,2682.4,1.0]
[1643845708188,0.1862,2683.5,2682.3,2.1760155]
[1643845708387,0.1862,2683.5,2682.9,0.33999741]
[1643845708989,2.049896,2683.5,2682.9,0.33999741]
[1643845709190,0.18598,2683.4,2682.6,0.86279185]
[1643845709389,0.9319083,2683.2,2682.6,0.86279185]
[1643845709589,0.1862,2683.3,2682.3,1.86369]
[1643845709793,0.3,2683.1,2682.3,1.86369]
[1643845710239,0.4862,2683.1,2682.2,0.00177385]
[1643845710439,0.9319249,2683.0,2682.2,0.00177385]
[1643845710639,0.3,2682.9,2682.2,0.94274302]
[1643845711039,0.18598,2683.0,2682.2,0.94274302]
[1643845711040,0.48598,2683.0,2682.2,0.94274302]
[1643845711237,0.18598,2683.0,2682.2,0.94274302]
[1643845711837,0.18598,2683.0,2682.5,0.43923396]
[1643845712037,2.7960822,2682.9,2682.5,0.43923396]
[1643845712238,3.0960822,2682.9,2682.5,0.43923396]
[1643845712639,1.2320274,2682.9,2682.5,0.43923396]
[1643845712841,0.3,2682.9,2682.5,0.43923396]
[1643845713039,0.18598,2683.3,2682.5,0.43923396]
[1643845713341,0.18598,2683.3,2682.7,0.76757106]
[1643845713738,0.18598,2683.3,2682.5,0.43923396]
[1643845713986,0.9318917,2683.0,2682.5,0.43923396]
[1643845714187,0.3,2682.9,2682.5,0.43923396]
[1643845717835,0.449222,2682.9,2682.5,0.43923396]
[1643845718736,0.3,2682.9,2682.5,0.43923396]
[1643845719640,1.2319636,2682.9,2682.5,0.43923396]
[1643845720037,3.2819706,2682.9,2682.2,0.00177385]
[1643845720247,3.2819706,2682.9,2682.0,0.00177385]
[1643845720248,0.3,2682.8,2682.0,0.00177385]
[1643845720637,0.70427532,2682.8,2682.0,0.00177385]
[1643845720838,0.70427532,2682.7,2682.0,0.00177385]
[1643845721140,0.18598,2682.6,2682.0,0.00177385]
[1643845721338,0.18598,2682.6,2681.8,1.86586385]
[1643845723195,0.9321608,2682.5,2681.9,0.73305868]
[1643845723597,0.9321608,2682.5,2682.0,0.93206]
[1643845723598,1.2321608,2682.5,2682.0,0.93206]
[1643845724197,4.2196,2682.7,2682.1,2.10746887]
[1643845724500,1.07665532,2683.2,2682.9,0.44251545]